{"text_format":"3","workbook":"xlsx","n_sheets":2,"sheets":["Giderler","Kategori"],"not_rendered":{"defined_names":5},"read":"whole","date_system":"1900"}

{"sheet":"Giderler","index":0,"n_rows":25,"n_cols":7,"rows_kept":25,"merged":[[0,1,0,5],[1,1,1,5]]}
[null,"GİDER BÜTÇESİ",{"$nulls":4},{"$f":"TODAY()","v":{"v":44578,"d":"4457800.00%"}}]
[null,"Şirket Adı"]
[null,"Gider","Kategori","Bütçe","Gerçek","Fark (TL)","Fark (%)"]
[null,"Reklam","Operasyon",null,null,{"$f":"IFERROR(SUM(Giderler[[#This Row],[Bütçe]]-Giderler[[#This Row],[Gerçek]]), \"\")","v":0},{"$f":"IFERROR(SUM(Giderler[[#This Row],[Fark (TL)]]/Giderler[[#This Row],[Bütçe]]),\"\")","v":""}]
[null,"Borçlar","Operasyon",null,null,{"$f":"IFERROR(SUM(Giderler[[#This Row],[Bütçe]]-Giderler[[#This Row],[Gerçek]]), \"\")","v":0},{"$f":"IFERROR(SUM(Giderler[[#This Row],[Fark (TL)]]/Giderler[[#This Row],[Bütçe]]),\"\")","v":""}]
[null,"Kazançlar","Operasyon",null,null,{"$f":"IFERROR(SUM(Giderler[[#This Row],[Bütçe]]-Giderler[[#This Row],[Gerçek]]), \"\")","v":0},{"$f":"IFERROR(SUM(Giderler[[#This Row],[Fark (TL)]]/Giderler[[#This Row],[Bütçe]]),\"\")","v":""}]
[null,"Malzemeler","Operasyon",null,null,{"$f":"IFERROR(SUM(Giderler[[#This Row],[Bütçe]]-Giderler[[#This Row],[Gerçek]]), \"\")","v":0},{"$f":"IFERROR(SUM(Giderler[[#This Row],[Fark (TL)]]/Giderler[[#This Row],[Bütçe]]),\"\")","v":""}]
[null,"Posta","Operasyon",null,null,{"$f":"IFERROR(SUM(Giderler[[#This Row],[Bütçe]]-Giderler[[#This Row],[Gerçek]]), \"\")","v":0},{"$f":"IFERROR(SUM(Giderler[[#This Row],[Fark (TL)]]/Giderler[[#This Row],[Bütçe]]),\"\")","v":""}]
[null,"Kira veya konut kredisi","Operasyon",null,null,{"$f":"IFERROR(SUM(Giderler[[#This Row],[Bütçe]]-Giderler[[#This Row],[Gerçek]]), \"\")","v":0},{"$f":"IFERROR(SUM(Giderler[[#This Row],[Fark (TL)]]/Giderler[[#This Row],[Bütçe]]),\"\")","v":""}]
[null,"Satış giderleri","Operasyon",null,null,{"$f":"IFERROR(SUM(Giderler[[#This Row],[Bütçe]]-Giderler[[#This Row],[Gerçek]]), \"\")","v":0},{"$f":"IFERROR(SUM(Giderler[[#This Row],[Fark (TL)]]/Giderler[[#This Row],[Bütçe]]),\"\")","v":""}]
[null,"Vergiler","Operasyon",null,null,{"$f":"IFERROR(SUM(Giderler[[#This Row],[Bütçe]]-Giderler[[#This Row],[Gerçek]]), \"\")","v":0},{"$f":"IFERROR(SUM(Giderler[[#This Row],[Fark (TL)]]/Giderler[[#This Row],[Bütçe]]),\"\")","v":""}]
[null,"Faturalar","Operasyon",null,null,{"$f":"IFERROR(SUM(Giderler[[#This Row],[Bütçe]]-Giderler[[#This Row],[Gerçek]]), \"\")","v":0},{"$f":"IFERROR(SUM(Giderler[[#This Row],[Fark (TL)]]/Giderler[[#This Row],[Bütçe]]),\"\")","v":""}]
[null,"Diğer","Operasyon",null,null,{"$f":"IFERROR(SUM(Giderler[[#This Row],[Bütçe]]-Giderler[[#This Row],[Gerçek]]), \"\")","v":0},{"$f":"IFERROR(SUM(Giderler[[#This Row],[Fark (TL)]]/Giderler[[#This Row],[Bütçe]]),\"\")","v":""}]
[null,"Sigorta","Operasyon",null,null,{"$f":"IFERROR(SUM(Giderler[[#This Row],[Bütçe]]-Giderler[[#This Row],[Gerçek]]), \"\")","v":0},{"$f":"IFERROR(SUM(Giderler[[#This Row],[Fark (TL)]]/Giderler[[#This Row],[Bütçe]]),\"\")","v":""}]
[null,"Faiz","Operasyon",null,null,{"$f":"IFERROR(SUM(Giderler[[#This Row],[Bütçe]]-Giderler[[#This Row],[Gerçek]]), \"\")","v":0},{"$f":"IFERROR(SUM(Giderler[[#This Row],[Fark (TL)]]/Giderler[[#This Row],[Bütçe]]),\"\")","v":""}]
[null,"Telefon","Operasyon",null,null,{"$f":"IFERROR(SUM(Giderler[[#This Row],[Bütçe]]-Giderler[[#This Row],[Gerçek]]), \"\")","v":0},{"$f":"IFERROR(SUM(Giderler[[#This Row],[Fark (TL)]]/Giderler[[#This Row],[Bütçe]]),\"\")","v":""}]
[null,"Bakım ve onarım","Operasyon",null,null,{"$f":"IFERROR(SUM(Giderler[[#This Row],[Bütçe]]-Giderler[[#This Row],[Gerçek]]), \"\")","v":0},{"$f":"IFERROR(SUM(Giderler[[#This Row],[Fark (TL)]]/Giderler[[#This Row],[Bütçe]]),\"\")","v":""}]
[null,"Yasal ücretler","Operasyon",null,null,{"$f":"IFERROR(SUM(Giderler[[#This Row],[Bütçe]]-Giderler[[#This Row],[Gerçek]]), \"\")","v":0},{"$f":"IFERROR(SUM(Giderler[[#This Row],[Fark (TL)]]/Giderler[[#This Row],[Bütçe]]),\"\")","v":""}]
[null,"Amortisman","Operasyon",null,null,{"$f":"IFERROR(SUM(Giderler[[#This Row],[Bütçe]]-Giderler[[#This Row],[Gerçek]]), \"\")","v":0},{"$f":"IFERROR(SUM(Giderler[[#This Row],[Fark (TL)]]/Giderler[[#This Row],[Bütçe]]),\"\")","v":""}]
[null,"Nakliye","Operasyon",null,null,{"$f":"IFERROR(SUM(Giderler[[#This Row],[Bütçe]]-Giderler[[#This Row],[Gerçek]]), \"\")","v":0},{"$f":"IFERROR(SUM(Giderler[[#This Row],[Fark (TL)]]/Giderler[[#This Row],[Bütçe]]),\"\")","v":""}]
[null,"Depolama","Operasyon",null,null,{"$f":"IFERROR(SUM(Giderler[[#This Row],[Bütçe]]-Giderler[[#This Row],[Gerçek]]), \"\")","v":0},{"$f":"IFERROR(SUM(Giderler[[#This Row],[Fark (TL)]]/Giderler[[#This Row],[Bütçe]]),\"\")","v":""}]
[null,"Mağaza","Kişisel",null,null,{"$f":"IFERROR(SUM(Giderler[[#This Row],[Bütçe]]-Giderler[[#This Row],[Gerçek]]), \"\")","v":0},{"$f":"IFERROR(SUM(Giderler[[#This Row],[Fark (TL)]]/Giderler[[#This Row],[Bütçe]]),\"\")","v":""}]
[null,"Satış temsilcileri","Kişisel",null,null,{"$f":"IFERROR(SUM(Giderler[[#This Row],[Bütçe]]-Giderler[[#This Row],[Gerçek]]), \"\")","v":0},{"$f":"IFERROR(SUM(Giderler[[#This Row],[Fark (TL)]]/Giderler[[#This Row],[Bütçe]]),\"\")","v":""}]
[null,"Diğer","Kişisel",null,null,{"$f":"IFERROR(SUM(Giderler[[#This Row],[Bütçe]]-Giderler[[#This Row],[Gerçek]]), \"\")","v":0},{"$f":"IFERROR(SUM(Giderler[[#This Row],[Fark (TL)]]/Giderler[[#This Row],[Bütçe]]),\"\")","v":""}]
[null,"Toplam Giderler",null,{"$f":"IFERROR(SUM(Giderler[Bütçe]), \"\")","v":0},{"$f":"IFERROR(SUM(Giderler[Gerçek]), \"\")","v":0},{"$f":"IFERROR(SUM(Giderler[Fark (TL)]), \"\")","v":0},{"$f":"IFERROR(SUM(Giderler[[#Totals],[Fark (TL)]]/Giderler[[#Totals],[Bütçe]]),\"\")","v":""}]

{"sheet":"Kategori","index":1,"n_rows":4,"n_cols":2,"rows_kept":4}
[null,"Kategori Araması"]
[null,"Kategori"]
[null,"Operasyon"]
[null,"Kişisel"]